fUSD/lending_fUSD_20250811
["ID","MTS","AMOUNT","RATE_DAILY","PERIOD"]
[378631880,1754933439810,-400.0,0.00016438,2]
[378631882,1754933439819,-801.47,0.00016438,2]
[378631884,1754933439829,-656.96,0.00016438,2]
[378631886,1754933439838,-11.42535867,0.00016438,2]
[378631888,1754933439850,-388.57464133,0.00016438,2]
[378631890,1754933439859,-444.09,0.00016438,2]
[378631892,1754933439868,-400.0,0.00016438,2]
[378631894,1754933439877,-400.0,0.00016438,2]
[378631896,1754933439887,-560.98,0.00016438,2]
[378631898,1754933439896,-400.0,0.00016438,2]
[378631900,1754933439906,-400.0,0.00016438,2]
[378631902,1754933439915,-400.0,0.00016438,2]
[378631904,1754933439924,-516.81,0.00016438,2]
[378631906,1754933439934,-1712.38,0.00016438,2]
[378631908,1754933439943,-400.0,0.00016438,2]
[378631910,1754933439952,-400.0,0.00016438,2]
[378631912,1754933439961,-1149.27,0.00016438,2]
[378631914,1754933439970,-400.0,0.00016438,2]
[378631916,1754933439979,-400.0,0.00016438,2]
[378631918,1754933439989,-400.0,0.00016438,2]
[378631920,1754933439999,-459.86,0.00016438,2]
[378631922,1754933440008,-400.0,0.00016438,2]
[378631924,1754933440017,-400.0,0.00016438,2]
[378631926,1754933440027,-8857.04,0.00016438,2]
[378631928,1754933440036,-400.0,0.00016438,2]
[378631930,1754933440045,-400.0,0.00016438,2]
[378631932,1754933440054,-400.0,0.00016438,2]
[378631934,1754933440063,-400.0,0.00016438,2]
[378631936,1754933440072,-400.0,0.00016438,2]
[378631938,1754933440082,-400.0,0.00016438,2]
[378631940,1754933440091,-400.0,0.00016438,2]
[378631942,1754933440100,-496.18,0.00016438,2]
[378631944,1754933440109,-885.54,0.00016438,2]
[378631946,1754933440123,-400.0,0.00016438,2]
[378631947,1754933440132,-283.3104848,0.00016438,2]
[378631948,1754933440144,-116.6895152,0.00016438,2]
[378631949,1754933440153,-400.0,0.00016438,2]
[378631950,1754933440163,-400.0,0.00016438,2]
[378631951,1754933440171,-400.0,0.00016438,2]
[378631952,1754933440181,-467.25,0.00016438,2]
[378631953,1754933440190,-296.0604848,0.00016438,2]
[378631954,1754933440201,-114.8695152,0.00016438,2]
[378631955,1754933440210,-400.0,0.00016438,2]
[378631956,1754933440219,-400.0,0.00016438,2]
[378631957,1754933440230,-400.0,0.00016438,2]
[378631958,1754933440239,-425.94825554,0.00016438,2]
[378631959,1754933440248,-400.0,0.00016438,2]
[378631960,1754933440260,-1018.62,0.00016438,2]
[378631961,1754933440269,-934.11,0.00016438,2]
[378631962,1754933440278,-667.2,0.00016438,2]
[378631963,1754933440288,-400.0,0.00016438,2]
[378631964,1754933440298,-400.0,0.00016438,2]
[378631965,1754933440308,-426.39,0.00016438,2]
[378631966,1754933440317,-945.62,0.00016438,2]
[378631967,1754933440326,-118.45545481,0.00016438,2]
[378632012,1754933440814,-281.54454519,0.00016438,2]
[378632014,1754933440823,-76.65085447,0.00016438,2]
[378632074,1754933441375,-1923.34914553,0.00016438,2]
[378632076,1754933441385,-400.0,0.00016438,2]
[378632078,1754933441394,-263.21641162,0.00016438,2]
[378632080,1754933441405,-136.78358838,0.00016438,2]
[378632082,1754933441414,-200.0,0.00016438,2]
[378632084,1754933441423,-400.0,0.00016438,2]
[378632086,1754933441434,-400.0,0.00016438,2]
[378632088,1754933441443,-448.32,0.00016438,2]
[378632090,1754933441452,-475.87,0.00016438,2]
[378632092,1754933441461,-428.12129971,0.00016438,2]
[378632094,1754933441471,-303.66536607,0.00016438,2]
[378632096,1754933441484,-294.59463393,0.00016438,2]
[378632098,1754933441493,-47.51336607,0.00016438,2]
[378632101,1754933441508,-2099.92663393,0.00016438,2]
[378632103,1754933441517,-360.07336577,0.00016438,2]
[378632105,1754933441530,-39.92663423,0.00016438,2]
[378632107,1754933441539,-400.0,0.00016438,2]
[378632109,1754933441548,-400.0,0.00016438,2]
[378632111,1754933441558,-590.92,0.00016438,2]
[378632113,1754933441567,-440.76,0.00016438,2]
[378632115,1754933441576,-400.0,0.00016438,2]
[378632117,1754933441586,-400.0,0.00016438,2]
[378632119,1754933441595,-400.0,0.00016438,2]
[378632121,1754933441604,-400.0,0.00016438,2]
[378632123,1754933441613,-582.07,0.00016438,2]
[378632125,1754933441622,-978.46,0.00016438,2]
[378632127,1754933441631,-617.03,0.00016438,2]
[378632129,1754933441640,-400.0,0.00016438,2]
[378632131,1754933441650,-241.798292,0.00016438,2]
[378632133,1754933441662,-183.321708,0.00016438,2]
[378632135,1754933441671,-400.0,0.00016438,2]
[378632137,1754933441680,-20.678292,0.00016438,2]
[378632139,1754933441697,-388.641708,0.00016438,2]
[378632141,1754933441706,-721.57,0.00016438,2]
[378632143,1754933441715,-456.64,0.00016438,2]
[378632145,1754933441724,-400.0,0.00016438,2]
[378632147,1754933441734,-579.15,0.00016438,2]
[378632149,1754933441743,-423.8,0.00016438,2]
[378632151,1754933441752,-400.0,0.00016438,2]
[378632153,1754933441761,-662.75291922,0.00016438,2]
[378632156,1754933441777,-146.96708078,0.00016438,2]
[378632158,1754933441786,-400.0,0.00016438,2]
[378632160,1754933441795,-2085.6,0.00016438,2]
[378632162,1754933441804,-647.14,0.00016438,2]
[378632164,1754933441813,-663.86,0.00016438,2]
[378632166,1754933441823,-400.0,0.00016438,2]
[378632168,1754933441832,-400.0,0.00016438,2]
[378632170,1754933441842,-400.0,0.00016438,2]
[378632172,1754933441851,-821.94,0.00016438,2]
[378632174,1754933441860,-1217.7,0.00016438,2]
[378632176,1754933441868,-572.16,0.00016438,2]
[378632178,1754933441877,-400.0,0.00016438,2]
[378632180,1754933441886,-1234.61,0.00016438,2]
[378632182,1754933441895,-435.36,0.00016438,2]
[378632184,1754933441904,-400.0,0.00016438,2]
[378632186,1754933441914,-891.9,0.00016438,2]
[378632188,1754933441923,-400.0,0.00016438,2]
[378632190,1754933441932,-400.0,0.00016438,2]
[378632192,1754933441941,-400.0,0.00016438,2]
[378632194,1754933441950,-1440.08,0.00016438,2]
[378632196,1754933441959,-672.7,0.00016438,2]
[378632198,1754933441968,-400.0,0.00016438,2]
[378632200,1754933441977,-400.0,0.00016438,2]
[378632202,1754933441986,-1517.23,0.00016438,2]
[378632204,1754933441995,-400.0,0.00016438,2]
[378632206,1754933442004,-595.81,0.00016438,2]
[378632208,1754933442013,-400.0,0.00016438,2]
[378632210,1754933442022,-400.0,0.00016438,2]
[378632212,1754933442031,-400.0,0.00016438,2]
[378632214,1754933442040,-536.01,0.00016438,2]
[378632216,1754933442049,-539.87,0.00016438,2]
[378632218,1754933442058,-400.0,0.00016438,2]
[378632220,1754933442067,-459.76,0.00016438,2]
[378632222,1754933442077,-708.27,0.00016438,2]
[378632224,1754933442085,-400.0,0.00016438,2]
[378632226,1754933442094,-400.0,0.00016438,2]
[378632228,1754933442103,-1642.63,0.00016438,2]
[378632230,1754933442112,-400.0,0.00016438,2]
[378632232,1754933442121,-607.76,0.00016438,2]
[378632234,1754933442130,-495.75,0.00016438,2]
[378632236,1754933442139,-400.0,0.00016438,2]
[378632237,1754933442148,-400.0,0.00016438,2]
[378632240,1754933442158,-1745.17,0.00016438,2]
[378632241,1754933442167,-414.68,0.00016438,2]
[378632244,1754933442176,-598.01,0.00016438,2]
[378632246,1754933442186,-528.44,0.00016438,2]
[378632247,1754933442195,-411.57,0.00016438,2]
[378632249,1754933442204,-1155.52,0.00016438,2]
[378632252,1754933442213,-400.0,0.00016438,2]
[378632253,1754933442224,-678.0,0.00016438,2]
[378632256,1754933442234,-3033.47,0.00016438,2]
[378632258,1754933442243,-430.62,0.00016438,2]
[378632260,1754933442252,-400.0,0.00016438,2]
[378632262,1754933442261,-803.36,0.00016438,2]
[378632264,1754933442271,-412.14,0.00016438,2]
[378632266,1754933442280,-400.0,0.00016438,2]
[378632267,1754933442289,-763.73,0.00016438,2]
[378632269,1754933442299,-1025.91,0.00016438,2]
[378632271,1754933442308,-1059.58,0.00016438,2]
[378632274,1754933442318,-400.0,0.00016438,2]
[378632276,1754933442327,-400.0,0.00016438,2]
[378632277,1754933442336,-400.0,0.00016438,2]
[378632279,1754933442346,-440.99,0.00016438,2]
[378632283,1754933442357,-400.0,0.00016438,2]
[378632284,1754933442365,-1382.83,0.00016438,2]
[378632286,1754933442374,-1845.84,0.00016438,2]
[378632288,1754933442383,-644.86,0.00016438,2]
[378632290,1754933442392,-400.0,0.00016438,2]
[378632292,1754933442400,-787.47,0.00016438,2]
[378632294,1754933442409,-1044.46,0.00016438,2]
[378632296,1754933442419,-400.0,0.00016438,2]
[378632298,1754933442430,-400.0,0.00016438,2]
[378632300,1754933442440,-400.0,0.00016438,2]
[378632302,1754933442449,-2649.77,0.00016438,2]
[378632304,1754933442458,-1380.79,0.00016438,2]
[378632306,1754933442467,-400.0,0.00016438,2]
[378632308,1754933442479,-400.0,0.00016438,2]
[378632311,1754933442489,-558.62,0.00016438,2]
[378632314,1754933442499,-513.76,0.00016438,2]
[378632316,1754933442509,-527.23,0.00016438,2]
[378632318,1754933442518,-1134.7,0.00016438,2]
[378632320,1754933442529,-528.28,0.00016438,2]
[378632322,1754933442538,-766.64,0.00016438,2]
[378632324,1754933442548,-430.21,0.00016438,2]
[378632326,1754933442558,-2283.67,0.00016438,2]
[378632328,1754933442567,-400.0,0.00016438,2]
[378632330,1754933442576,-400.0,0.00016438,2]
[378632332,1754933442586,-664.04,0.00016438,2]
[378632334,1754933442596,-424.8,0.00016438,2]
[378632336,1754933442605,-1073.69,0.00016438,2]
[378632338,1754933442615,-400.0,0.00016438,2]
[378632340,1754933442625,-804.85,0.00016438,2]
[378632342,1754933442634,-1090.18,0.00016438,2]
[378632344,1754933442644,-400.0,0.00016438,2]
[378632346,1754933442653,-2000.51,0.00016438,2]
[378632348,1754933442662,-400.0,0.00016438,2]
[378632350,1754933442671,-2589.18,0.00016438,2]
[378632351,1754933442681,-400.0,0.00016438,2]
[378632353,1754933442690,-413.17,0.00016438,2]
[378632355,1754933442700,-400.0,0.00016438,2]
[378632357,1754933442709,-402.21,0.00016438,2]
[378632359,1754933442718,-400.0,0.00016438,2]
[378632361,1754933442729,-400.0,0.00016438,2]
[378632363,1754933442738,-400.0,0.00016438,2]
[378632365,1754933442748,-430.76,0.00016438,2]
[378632367,1754933442757,-735.89,0.00016438,2]
[378632369,1754933442766,-400.0,0.00016438,2]
[378632371,1754933442776,-400.0,0.00016438,2]
[378632373,1754933442785,-2499.04,0.00016438,2]
[378632375,1754933442795,-400.0,0.00016438,2]
[378632377,1754933442804,-400.0,0.00016438,2]
[378632379,1754933442813,-477.68,0.00016438,2]
[378632381,1754933442823,-13771.35,0.00016438,2]
[378632383,1754933442832,-400.0,0.00016438,2]
[378632385,1754933442841,-697.83,0.00016438,2]
[378632387,1754933442850,-532.3,0.00016438,2]
[378632389,1754933442860,-400.0,0.00016438,2]
[378632392,1754933442869,-421.78,0.00016438,2]
[378632394,1754933442879,-1266.24,0.00016438,2]
[378632396,1754933442888,-1217.85,0.00016438,2]
[378632414,1754933443043,-604.43,0.00016438,2]
[378632416,1754933443052,-400.0,0.00016438,2]
[378632418,1754933443062,-1070.1,0.00016438,2]
[378632420,1754933443071,-1022.86,0.00016438,2]
[378632422,1754933443080,-400.0,0.00016438,2]
[378632424,1754933443090,-200.0,0.00016438,2]
[378632426,1754933443099,-400.0,0.00016438,2]
[378632428,1754933443108,-466.24,0.00016438,2]
[378632430,1754933443118,-400.0,0.00016438,2]
[378632432,1754933443127,-315.75430633,0.00016438,2]
[378632434,1754933443137,-400.0,0.00016438,2]
[378632436,1754933443146,-1305.41,0.00016438,2]
[378632438,1754933443155,-486.94,0.00016438,2]
[378632440,1754933443165,-400.0,0.00016438,2]
[378632442,1754933443174,-546.72,0.00016438,2]
[378632444,1754933443183,-400.0,0.00016438,2]
[378632446,1754933443193,-2432.2,0.00016438,2]
[378632448,1754933443203,-400.0,0.00016438,2]
[378632449,1754933443213,-1443.06,0.00016438,2]
[378632451,1754933443223,-400.0,0.00016438,2]
[378632453,1754933443235,-496.18,0.00016438,2]
[378632456,1754933443245,-400.0,0.00016438,2]
[378632458,1754933443255,-949.15,0.00016438,2]
[378632460,1754933443264,-400.0,0.00016438,2]
[378632462,1754933443274,-1282.05,0.00016438,2]
[378632465,1754933443283,-400.0,0.00016438,2]
[378632467,1754933443293,-521.14,0.00016438,2]
[378632469,1754933443303,-2341.21,0.00016438,2]
[378632471,1754933443312,-1086.97,0.00016438,2]
[378632473,1754933443322,-694.51,0.00016438,2]
[378632474,1754933443332,-400.0,0.00016438,2]
[378632477,1754933443342,-690.86,0.00016438,2]
[378632479,1754933443352,-400.0,0.00016438,2]
[378632481,1754933443361,-474.29,0.00016438,2]
[378632483,1754933443371,-185.53994575,0.00016438,2]
[378632485,1754933443379,-1362.83,0.00016438,2]
[378632486,1754933443389,-400.0,0.00016438,2]
[378632488,1754933443398,-1002.67,0.00016438,2]
[378632490,1754933443407,-471.83,0.00016438,2]
[378632492,1754933443417,-2726.43,0.00016438,2]
[378632494,1754933443427,-229.550518,0.00016438,2]
[378632496,1754933443439,-400.0,0.00016438,2]
[378632499,1754933443449,-418.32,0.00016438,2]
[378632502,1754933443458,-229.550518,0.00016438,2]
[378632505,1754933443467,-1087.98,0.00016438,2]
[378632507,1754933443479,-424.74,0.00016438,2]
[378632509,1754933443488,-400.0,0.00016438,2]
[378632511,1754933443498,-449.47,0.00016438,2]
[378632512,1754933443508,-901.54,0.00016438,2]
[378632515,1754933443517,-400.0,0.00016438,2]
[378632516,1754933443528,-1000.0,0.00016438,2]
[378632518,1754933443538,-400.0,0.00016438,2]
[378632520,1754933443547,-1874.75,0.00016438,2]
[378632523,1754933443557,-1581.18,0.00016438,2]
[378632524,1754933443566,-498.33,0.00016438,2]
[378632526,1754933443576,-548.25,0.00016438,2]
[378632529,1754933443586,-400.0,0.00016438,2]
[378632531,1754933443595,-400.0,0.00016438,2]
[378632533,1754933443605,-997.12,0.00016438,2]
[378632535,1754933443614,-400.0,0.00016438,2]
[378632537,1754933443624,-400.0,0.00016438,2]
[378632539,1754933443633,-1153.51,0.00016438,2]
[378632541,1754933443643,-400.0,0.00016438,2]
[378632543,1754933443652,-1928.35,0.00016438,2]
[378632545,1754933443662,-500.0,0.00016438,2]
[378632547,1754933443672,-736.73,0.00016438,2]
[378632549,1754933443681,-400.0,0.00016438,2]
[378632551,1754933443691,-400.0,0.00016438,2]
[378632553,1754933443700,-400.0,0.00016438,2]
[378632555,1754933443709,-1692.43,0.00016438,2]
[378632557,1754933443718,-400.0,0.00016438,2]
[378632559,1754933443729,-400.0,0.00016438,2]
[378632561,1754933443738,-3230.16,0.00016438,2]
[378632563,1754933443747,-400.0,0.00016438,2]
[378632565,1754933443756,-416.11,0.00016438,2]
[378632567,1754933443765,-400.0,0.00016438,2]
[378632569,1754933443774,-401.03,0.00016438,2]
[378632571,1754933443784,-400.0,0.00016438,2]
[378632573,1754933443794,-400.0,0.00016438,2]
[378632575,1754933443803,-1340.95,0.00016438,2]
[378632577,1754933443813,-400.0,0.00016438,2]
[378632579,1754933443822,-2158.08,0.00016438,2]
[378632581,1754933443832,-1183.98,0.00016438,2]
[378632583,1754933443841,-1608.68,0.00016438,2]
[378632585,1754933443851,-400.0,0.00016438,2]
[378632587,1754933443860,-400.0,0.00016438,2]
[378632589,1754933443871,-400.0,0.00016438,2]
[378632591,1754933443880,-400.0,0.00016438,2]
[378632593,1754933443889,-911.83,0.00016438,2]
[378632595,1754933443900,-488.27,0.00016438,2]
[378632597,1754933443910,-418.67,0.00016438,2]
[378632599,1754933443919,-400.0,0.00016438,2]
[378632601,1754933443928,-400.0,0.00016438,2]
[378632603,1754933443938,-400.0,0.00016438,2]
[378632605,1754933443947,-400.0,0.00016438,2]
[378632607,1754933443956,-400.0,0.00016438,2]
[378632609,1754933443965,-793.1,0.00016438,2]
[378632611,1754933443975,-1045.78,0.00016438,2]
[378632613,1754933443984,-400.0,0.00016438,2]
[378632615,1754933443993,-1199.23,0.00016438,2]
[378632617,1754933444002,-400.0,0.00016438,2]
[378632619,1754933444011,-409.79761532,0.00016438,2]
[378632621,1754933444020,-2043.9,0.00016438,2]
[378632623,1754933444029,-2404.65,0.00016438,2]
[378632625,1754933444039,-2053.98,0.00016438,2]
[378632626,1754933444048,-2698.83,0.00016438,2]
[378632629,1754933444058,-400.0,0.00016438,2]
[378632631,1754933444067,-400.0,0.00016438,2]
[378632632,1754933444076,-400.0,0.00016438,2]
[378632635,1754933444086,-400.0,0.00016438,2]
[378632636,1754933444095,-439.28076908,0.00016438,2]
[378632766,1754933445562,-370.39923092,0.00016438,2]
[378632768,1754933445572,-29.60076908,0.00016438,2]
[378632770,1754933445587,-370.39923092,0.00016438,2]
[378632773,1754933445598,-474.8,0.00016438,2]
[378632774,1754933445607,-420.54,0.00016438,2]
[378632776,1754933445617,-401.23353801,0.00016438,2]
[378632778,1754933445626,-6121.72,0.00016438,2]
[378632781,1754933445635,-820.01,0.00016438,2]
[378632782,1754933445645,-3271.34,0.00016438,2]
[378632785,1754933445655,-214.60974646,0.00016438,2]
[378632787,1754933445665,-657.11,0.00016438,2]
[378632789,1754933445675,-400.0,0.00016438,2]
[378632791,1754933445684,-825.15,0.00016438,2]
[378632793,1754933445694,-400.0,0.00016438,2]
[378632795,1754933445703,-2724.66,0.00016438,2]
[378632797,1754933445712,-400.0,0.00016438,2]
[378632799,1754933445722,-726.17,0.00016438,2]
[378632800,1754933445734,-412.62,0.00016438,2]
[378632802,1754933445744,-533.91,0.00016438,2]
[378632804,1754933445753,-400.0,0.00016438,2]
[378632806,1754933445763,-1068.78,0.00016438,2]
[378632809,1754933445774,-1426.7,0.00016438,2]
[378632811,1754933445783,-753.83,0.00016438,2]
[378632812,1754933445793,-658.23,0.00016438,2]
[378632814,1754933445803,-658.23,0.00016438,2]
[378632817,1754933445813,-658.23,0.00016438,2]
[378632818,1754933445822,-400.0,0.00016438,2]
[378632820,1754933445831,-400.0,0.00016438,2]
[378632822,1754933445841,-448.63,0.00016438,2]
[378632824,1754933445850,-348.59923067,0.00016438,2]
[378632826,1754933445860,-1783.63,0.00016438,2]
[378632828,1754933445869,-1660.41,0.00016438,2]
[378632831,1754933445879,-1017.82,0.00016438,2]
[378632832,1754933445888,-539.15,0.00016438,2]
[378632834,1754933445897,-2008.68,0.00016438,2]
[378632836,1754933445906,-887.29,0.00016438,2]
[378632839,1754933445916,-2026.26,0.00016438,2]
[378632841,1754933445925,-400.0,0.00016438,2]
[378632843,1754933445935,-400.0,0.00016438,2]
[378632845,1754933445944,-400.0,0.00016438,2]
[378632847,1754933445953,-953.74,0.00016438,2]
[378632849,1754933445962,-614.25,0.00016438,2]
[378632851,1754933445972,-530.14,0.00016438,2]
[378632853,1754933445985,-1349.47,0.00016438,2]
[378632855,1754933445994,-1427.04,0.00016438,2]
[378632857,1754933446004,-1170.59,0.00016438,2]
[378632859,1754933446013,-400.0,0.00016438,2]
[378632861,1754933446023,-943.3,0.00016438,2]
[378632863,1754933446034,-1398.61,0.00016438,2]
[378632865,1754933446044,-1394.13,0.00016438,2]
[378632867,1754933446053,-400.0,0.00016438,2]
[378632869,1754933446063,-3283.84,0.00016438,2]
[378632871,1754933446072,-641.67,0.00016438,2]
[378632873,1754933446082,-832.6,0.00016438,2]
[378632875,1754933446091,-1040.86,0.00016438,2]
[378632877,1754933446101,-400.0,0.00016438,2]
[378632879,1754933446111,-1852.77,0.00016438,2]
[378632881,1754933446120,-418.24,0.00016438,2]
[378632883,1754933446130,-866.82,0.00016438,2]
[378632885,1754933446140,-400.0,0.00016438,2]
[378632887,1754933446150,-471.19,0.00016438,2]
[378632889,1754933446159,-418.45,0.00016438,2]
[378632891,1754933446169,-151.0,0.00016438,2]
[378632893,1754933446178,-520.34,0.00016438,2]
[378632895,1754933446187,-1462.02,0.00016438,2]
[378632897,1754933446197,-400.0,0.00016438,2]
[378632899,1754933446206,-1774.31,0.00016438,2]
[378632901,1754933446216,-1019.36,0.00016438,2]
[378632903,1754933446226,-151.0,0.00016438,2]
[378632905,1754933446239,-537.45,0.00016438,2]
[378632907,1754933446248,-400.0,0.00016438,2]
[378632909,1754933446258,-1824.25,0.00016438,2]
[378632911,1754933446267,-423.24,0.00016438,2]
[378632913,1754933446276,-960.97,0.00016438,2]
[378632915,1754933446285,-400.0,0.00016438,2]
[378632917,1754933446295,-707.22,0.00016438,2]
[378632919,1754933446305,-1355.21,0.00016438,2]
[378632922,1754933446315,-613.2,0.00016438,2]
[378632924,1754933446325,-2733.43,0.00016438,2]
[378632926,1754933446334,-980.39,0.00016438,2]
[378632928,1754933446344,-617.98,0.00016438,2]
[378632930,1754933446353,-151.0,0.00016438,2]
[378632932,1754933446363,-414.04,0.00016438,2]
[378632934,1754933446374,-400.0,0.00016438,2]
[378632936,1754933446385,-400.0,0.00016438,2]
[378632937,1754933446395,-2651.07,0.00016438,2]
[378632940,1754933446405,-400.0,0.00016438,2]
[378632942,1754933446415,-400.0,0.00016438,2]
[378632943,1754933446424,-1497.6,0.00016438,2]
[378632945,1754933446441,-805.1,0.00016438,2]
[378632947,1754933446451,-929.82,0.00016438,2]
[378632950,1754933446463,-1095.28,0.00016438,2]
[378632951,1754933446473,-400.0,0.00016438,2]
[378632953,1754933446488,-154.094054,0.00016438,2]
[378632955,1754933446497,-995.35,0.00016438,2]
[378632957,1754933446507,-426.34,0.00016438,2]
[378632959,1754933446516,-1170.99,0.00016438,2]
[378632962,1754933446527,-1665.32,0.00016438,2]
[378632963,1754933446536,-1494.95,0.00016438,2]
[378632966,1754933446545,-400.0,0.00016438,2]
[378632967,1754933446555,-1119.5,0.00016438,2]
[378632969,1754933446565,-400.0,0.00016438,2]
[378632971,1754933446574,-680.42,0.00016438,2]
[378632973,1754933446584,-400.0,0.00016438,2]
[378632975,1754933446594,-1041.30419994,0.00016438,2]
[378632979,1754933446618,-2794.35580006,0.00016438,2]
[378632981,1754933446628,-202.64419994,0.00016438,2]
[378632983,1754933446640,-467.10580006,0.00016438,2]
[378632985,1754933446650,-400.0,0.00016438,2]
[378632987,1754933446660,-400.0,0.00016438,2]
[378632989,1754933446670,-638.06,0.00016438,2]
[378632991,1754933446680,-400.0,0.00016438,2]
[378632993,1754933446690,-547.98,0.00016438,2]
[378632995,1754933446700,-400.0,0.00016438,2]
[378632997,1754933446710,-751.39,0.00016438,2]
[378632999,1754933446720,-725.39,0.00016438,2]
[378633002,1754933446736,-56.19533271,0.00016438,2]
[378633004,1754933446748,-288.19630875,0.00016438,2]
[378633008,1754933446783,-55.60835854,0.00016438,2]
[378633010,1754933446792,-561.77799601,0.00016438,2]
[378633012,1754933446804,-397.61200399,0.00016438,2]
[378633014,1754933446814,-176.52131418,0.00016438,2]
[378633017,1754933446835,-54.40159712,0.00016438,2]
[378633019,1754933446845,-618.92946868,0.00016438,2]
[378633022,1754933446857,-888.19053132,0.00016438,2]
[378633023,1754933446867,-400.0,0.00016438,2]
[378633026,1754933446876,-400.0,0.00016438,2]
[378633027,1754933446886,-400.0,0.00016438,2]
[378633029,1754933446899,-536.23869637,0.00016438,2]
[378633030,1754933446909,-905.94,0.00016438,2]
[378633031,1754933446919,-400.0,0.00016438,2]
[378633032,1754933446929,-1488.20104518,0.00016438,2]
[378633034,1754933446962,-159.85215482,0.00016438,2]
[378633036,1754933446972,-2347.87260389,0.00016438,2]
[378633038,1754933446983,-600.0,0.00016438,2]
[378633040,1754933446993,-600.0,0.00016438,2]
[378633042,1754933447002,-600.0,0.00016438,2]
[378633044,1754933447011,-600.0,0.00016438,2]
[378633046,1754933447020,-600.0,0.00016438,2]
[378633048,1754933447029,-579.7432146,0.00016438,2]
[378633051,1754933447051,-20.2567854,0.00016438,2]
[378633053,1754933447061,-600.0,0.00016438,2]
[378633055,1754933447071,-600.0,0.00016438,2]
[378633057,1754933447080,-12.74296355,0.00016438,2]
[378633144,1754933447926,-359.73,0.00016269,2]
[378633146,1754933447937,-254.86761704,0.00016269,2]
[378633148,1754933447946,-182.25022635,0.00016269,2]
[378633150,1754933447955,-336.62444632,0.00016438,2]
[378633152,1754933447964,-106.31187169,0.0001644,2]
[378633154,1754933447974,-60.35479497,0.0001644,2]
[378633156,1754933447984,-500.0,0.00016473,2]
[378633158,1754933447993,-500.0,0.00016473,2]
[378633159,1754933448002,-500.0,0.00016473,2]
[378633161,1754933448011,-352.85681522,0.00016473,2]
[378633163,1754933448022,-147.14318478,0.00016473,2]
[378633165,1754933448031,-205.36714479,0.00016473,2]
[378633167,1754933448040,-321.80617363,0.00016473,2]
[378633169,1754933448049,-131.1834908,0.00016473,2]
[378633186,1754933448214,-368.8165092,0.00016473,2]
[378633188,1754933448224,-170.3512636,0.00016473,2]
[378633190,1754933448235,-86.69544773,0.00016473,2]
[378633192,1754933448248,-362.34247196,0.00016473,2]
[378633261,1754933449016,507.0,0.00015314,2]
[378634233,1754933476346,530.0,0.00015314,2]
[378634234,1754933565867,509.0,0.00015804,2]
[378634239,1754933750706,158.56,0.0001562,2]
[378634240,1754933851946,1268.54,0.00015618,2]
[378634242,1754933917799,152.58,0.00015458,2]
[378634243,1754933923185,150.0,9.7e-05,2]
[378634244,1754933945961,250.0,0.00015458,2]
[378634245,1754933984777,168.01,0.00015458,2]
[378634253,1754934106568,174.37,0.00015507,2]